Cogmind - Beta 17 @@@ ROGUE MODE // 2026.08.02 @ 00:39:50 Player: puppuppit Result: Core destroyed Performance ------------- Evolutions (4) 2000 Regions Visited (18) 3600 Robots Destroyed (518) 2590 Value Destroyed (14771) 14771 Prototype IDs (31) 620 Alien Tech Used (0) 0 Bonus (8164) 8164 TOTAL SCORE: 31745 Bonus ------- Triggered High Security 500 High Alert Combat Kills 3863 Follower Combat Kills 1615 Hunted by Unchained 500 Entered Garrisons 200 Met Data Miner 300 Acquired ECA 300 Met Zhirov 300 Built Enhanced Grunts 300 A7 Reached Mainframe 300 Met R17 at Cetus 500 Friendly Fire -514 Cogmind --------- Core Integrity 0/850 Matter 177/300 Energy 350/350 System Corruption 1% Temperature Cool (0) Movement Hovering (115) Ox1 Location -6/Archives Parts ------- > --- POWER (1) -------- Quantum Reactor > --- PROPULSION (5) --- Improved Hover Unit Gravmag System Gravmag System Combat Airjet > --- UTILITY (5) ------ Coolant Injector Medium Storage Unit 0b10 Decoder Chip [Generic] Advanced Targeting Computer Advanced Targeting Computer > --- WEAPON (4) ------- Advanced KE Penetrator Advanced KE Penetrator Bore Cannon Bore Cannon > --- INVENTORY (10) --- Gravmag System Medium Reactive Plating Experimental Thermal Shield Improved Hacking Suite Improved Hacking Suite High-powered Tractor Beam Heart of Steel Mini Assault Cannon Peak State ------------ > --- POWER ------------ Quantum Reactor > --- PROPULSION ------- Improved Medium Treads Improved Medium Treads Improved Hover Unit Improved Hover Unit Combat Airjet > --- UTILITY ---------- Medium Storage Unit 0b10 Decoder Chip [Generic] Advanced Targeting Computer Advanced Targeting Computer Improved System Restoration Module > --- WEAPON ----------- Advanced KE Penetrator Advanced KE Penetrator Bore Cannon Bore Cannon > --- INVENTORY -------- Advanced Heat Sink Medium Reactive Plating Medium Reactive Plating Experimental Thermal Shield High-powered Tractor Beam Heart of Steel Mini Assault Cannon Bore Cannon [Rating: 76] Favorites ----------- Power Reinforced Ion Engine Engine Reinforced Ion Engine Power Core Enhanced Nuclear Core Reactor Quantum Reactor Propulsion Light Treads Treads Light Treads Leg Flexi-carbon Leg Wheel Compact Wheel Hover Unit Combat Airjet Utility Advanced Targeting Computer Device Improved Heat Sink Storage High-capacity Storage Unit Processor Advanced Targeting Computer Hackware Hacking Suite Protection Medium Reactive Plating Weapon Minigun Energy Gun High-powered Shock Rifle Energy Cannon Ion Cannon Ballistic Gun Minigun Ballistic Cannon Bore Cannon Launcher Missile Launcher Slashing Weapon Phasing Sabre Piercing Weapon Makeshift Spear Build | -11 -10 -10 -9 -9 -9 -8 -8 -8 -8 -7 -7 -7 -7 -6 -6 -6 -6 -6 ------- Run | Yrd Mat Min Mat Min Exi Min Mat Sto Gar Fac Low Low Dat Pro Fac Ext Cet Arc Slots Evolved 8 | . . . 2 . . . 2 . . 2 . . . . 2 . . . Power . | . . . . . . . . . . . . . . . . . . . Propulsion 3 | . . . . . . . 1 . . 1 . . . . 1 . . . Utility 3 | . . . . . . . 1 . . 1 . . . . 1 . . . Weapon 2 | . . . 2 . . . . . . . . . . . . . . . Parts Attached 225 | 7 11 1 17 4 1 6 32 16 7 30 6 9 . 2 32 32 9 3 Power 23 | 1 1 1 1 2 . 1 2 2 1 2 . 1 . . 5 2 1 . Engine 17 | 1 1 1 1 2 . 1 2 2 1 2 . . . . 2 1 . . Core 5 | . . . . . . . . . . . . 1 . . 3 1 . . Reactor 1 | . . . . . . . . . . . . . . . . . 1 . Propulsion 72 | 2 5 . 7 2 . 1 14 3 1 12 1 . . 1 5 14 2 2 Treads 36 | 2 . . 7 2 . 1 13 2 1 3 . . . . . 5 . . Leg 3 | . 2 . . . . . . . . . . . . . . 1 . . Wheel 12 | . 3 . . . . . . . . 4 . . . . . 5 . . Hover 21 | . . . . . . . 1 1 . 5 1 . . 1 5 3 2 2 Flight . | . . . . . . . . . . . . . . . . . . . Utility 61 | 2 3 . 2 . 1 2 9 2 4 8 2 5 . . 10 7 3 1 Device 24 | 1 1 . . . . 2 2 1 2 3 1 3 . . 4 1 2 1 Storage 7 | 1 . . 1 . 1 . . . . . 1 1 . . . 2 . . Processor 11 | . 2 . 1 . . . 2 . 1 3 . . . . 2 . . . Hackware 7 | . . . . . . . 2 1 1 1 . . . . 2 . . . Protection 12 | . . . . . . . 3 . . 1 . 1 . . 2 4 1 . Artifact . | . . . . . . . . . . . . . . . . . . . Weapon 69 | 2 2 . 7 . . 2 7 9 1 8 3 3 . 1 12 9 3 . Energy Gun 3 | . . . . . . . . . . . . 1 . . 1 . 1 . Energy Cannon 1 | . . . . . . . . . . . . . . . 1 . . . Ballistic Gun 43 | 2 1 . 6 . . 2 5 7 . 5 . 1 . 1 8 3 2 . Ballistic Cannon 12 | . . . . . . . . 2 . 2 1 . . . 2 5 . . Launcher 6 | . 1 . 1 . . . 2 . 1 1 . . . . . . . . Special Weapon . | . . . . . . . . . . . . . . . . . . . Impact Weapon . | . . . . . . . . . . . . . . . . . . . Slashing Weapon 3 | . . . . . . . . . . . 1 1 . . . 1 . . Piercing Weapon 1 | . . . . . . . . . . . 1 . . . . . . . Special Melee Weapon . | . . . . . . . . . . . . . . . . . . . Unidentified Prototypes 11 | . . . . . . . . 3 . 1 . . . . 3 1 3 . Corrupted Parts 4 | . . . . . . . . . . 2 1 . . 1 . . . . System Corruption 23 | . . . . . . . . . . 11 2 . . 10 . . . . Parts Lost 60 | . 4 . . . . 3 6 1 . 15 5 2 . . 22 1 . 1 Power 3 | . . . . . . . . . . . . . . . 3 . . . Propulsion 24 | . 2 . . . . 1 2 . . 5 3 . . . 9 1 . 1 Utility 8 | . 1 . . . . . 2 . . 2 . . . . 3 . . . Weapon 25 | . 1 . . . . 2 2 1 . 8 2 2 . . 7 . . . Highest Loss Streak 10 | . 2 . . . . 1 2 1 . 7 6 1 . . 10 1 . 1 To Critical Strikes . | . . . . . . . . . . . . . . . . . . . Average Backups 15 | 2 7 8 14 15 16 18 19 19 19 18 10 9 13 13 12 6 7 8 Power 1 | . . . . . . 1 2 2 2 1 1 . . . . . . . Propulsion 2 | . . . 3 3 4 3 4 3 2 4 2 2 2 2 1 . . . Utility 7 | 1 4 4 3 6 8 10 8 8 10 8 5 5 9 9 7 3 4 5 Weapon 3 | . 2 4 6 4 3 3 4 6 5 4 . . . . 1 . 2 1 Tool/Special . | . . . . . . . . . . . . . . . . . . . Unused Backups 60 | . 5 . 10 3 2 . 5 2 1 3 4 2 . 3 7 4 3 6 Power 5 | . . . 1 . . . 2 1 . 1 . . . . . . . . Propulsion 5 | . . . 1 1 . . . . . 1 . . . . . 2 . . Utility 30 | . 4 . 3 1 1 . 2 . 1 . 3 2 . 3 5 . 1 4 Weapon 17 | . 1 . 5 1 1 . 1 1 . 1 . . . . 1 2 2 1 Tool/Special 3 | . . . . . . . . . . . 1 . . . 1 . . 1 Average Slot Usage (%) 97 | . 98 100 99 100 100 100 99 99 100 95 88 92 84 100 90 88 99 100 Engine 8 | . 13 14 11 11 11 11 9 9 9 6 7 1 . . 1 4 1 . Treads 19 | . 19 . 21 22 22 22 26 27 27 22 . . . . . 11 24 12 Wheel 1 | . 6 28 . . . . . . . 1 1 . . . . 10 . . Hover 4 | . . . . . . . . . . 4 27 30 30 30 26 1 7 20 Device 4 | . 6 . . . . 10 6 1 6 2 7 6 7 7 3 1 5 6 Storage 8 | . 14 14 11 11 11 11 9 9 9 7 7 7 7 7 5 3 6 6 Processor 10 | . 7 14 11 11 11 . 2 9 9 10 15 15 15 15 15 20 20 20 Hackware 2 | . . . . . . . 7 6 2 6 . . . . 4 1 . . Ballistic Gun 30 | . 27 28 43 43 44 43 35 35 35 26 . 2 2 13 17 7 . 12 Ballistic Cannon 2 | . . . . . . . . . . 1 11 8 2 7 2 12 24 13 Peak Build Rating 76 | 10 10 7 23 27 27 31 36 40 40 54 52 58 55 57 75 62 73 76 Average Rating 36 | 7 8 7 21 26 26 29 32 36 38 44 46 52 44 56 65 49 67 75 On Entrance 34 | . 10 7 7 23 27 27 28 35 40 39 32 52 55 55 55 19 62 73 Avg Prop Armor Cover (%) 3 | . . . 4 . . . . . . 4 . . . . 7 3 1 6 Naked Turns . | . . . . . . . . . . . . . . . . . . . Heaviest Build 81 | 12 14 12 41 42 61 63 70 70 66 76 36 52 45 46 52 71 81 61 Greatest Support 100 | 40 40 20 40 48 48 48 71 60 60 82 42 48 48 52 59 100 100 60 Greatest Overweight (x) 3 | . 3 . 1 1 1 1 1 1 1 1 . 1 . 1 1 3 . 1 Average Overweight (x) . | . . . . . . 1 . . 1 . . . . . . . . . Largest Inventory Capacity 20 | 8 8 8 15 15 20 20 20 20 20 20 20 15 15 15 15 10 10 10 Average Capacity 15 | 7 8 8 14 15 18 20 20 20 20 20 10 11 15 15 14 8 10 10 Most Carried 20 | 6 8 8 15 15 18 20 20 20 20 20 19 15 15 15 15 10 10 10 Average Carried 15 | 2 7 8 14 14 16 18 19 19 19 18 10 11 15 14 14 8 9 9 Final Capacity 20 | 8 8 8 15 15 20 20 20 20 20 20 10 15 15 15 15 10 10 10 Final Carried 20 | 6 8 8 15 15 17 20 20 20 20 19 10 15 15 15 11 10 10 10 Class Distribution -------------------- 56% | Gunner 18% | Scavenger-Gunner 10% | Mutant 5% | Commander-Gunner 5% | Scavenger-Mutant Dominant Class ---------------- Mutant | -10/Materials Scavenger-Mutant | -10/Mines Gunner | -9/Materials Gunner | -9/Mines Gunner | -9/Exiles Gunner | -8/Mines Scavenger-Gunner | -8/Materials Gunner | -8/Storage Gunner | -8/Garrison Gunner | -7/Factory Mutant | -7/Lower Caves Scavenger-Mutant | -7/Lower Caves Mutant | -7/Data Miner Scavenger-Gunner | -6/Proximity Caves Scavenger-Gunner | -6/Factory Commander-Gunner | -6/Extension Commander-Gunner | -6/Cetus Scavenger-Gunner | -6/Archives Resources | -11 -10 -10 -9 -9 -9 -8 -8 -8 -8 -7 -7 -7 -7 -6 -6 -6 -6 -6 ----------- Run | Yrd Mat Min Mat Min Exi Min Mat Sto Gar Fac Low Low Dat Pro Fac Ext Cet Arc Matter Collected 16917 | 450 767 40 1308 502 20 891 2142 1890 995 2977 256 399 . 110 2144 1429 458 139 Remotely 1103 | . . . . . . . . . . 1103 . . . . . . . . Salvage Created 21771 | 188 940 182 2059 359 . 1241 2459 2657 981 4432 49 395 . 81 3836 1469 240 203 Parts 1117 | 14 76 10 131 12 . 65 141 179 57 207 2 13 . 3 142 40 13 12 Haulers Intercepted 22 | . 1 . 6 . . . 3 6 . 1 . . . . 5 . . . Recyclers Shooed 19 | . 1 1 1 1 . . 3 . . 2 . . . . 7 3 . . Parts Field Recycled . | . . . . . . . . . . . . . . . . . . . Retrieved Matter . | . . . . . . . . . . . . . . . . . . . Parts Self-Destructed 14 | . . . . . . . . . . . 2 6 . 6 . . . . Prevented 2 | . . . . . . . . . . . . . . 2 . . . . Parts Restored . | . . . . . . . . . . . . . . . . . . . Kills | -11 -10 -10 -9 -9 -9 -8 -8 -8 -8 -7 -7 -7 -7 -6 -6 -6 -6 -6 ------- Run | Yrd Mat Min Mat Min Exi Min Mat Sto Gar Fac Low Low Dat Pro Fac Ext Cet Arc Combat Hostiles Destroyed 294 | . 20 2 32 15 . 23 33 24 28 67 4 5 . 2 24 11 4 . Guns 208 | . 17 2 27 12 . 17 25 24 19 43 . . . 1 19 2 . . Cannons 27 | . . . . . . . . . . 1 2 5 . 1 5 9 4 . AOE 59 | . 3 . 5 3 . 6 8 . 9 23 2 . . . . . . . Classes Destroyed 20 | 3 5 . 3 1 . 2 2 . 2 1 . . . . 1 . . . Worker 76 | 2 4 1 4 . . 2 5 32 . 13 . . . . 11 2 . . Builder 33 | . 1 . . . . 1 3 17 . 6 . . . . 3 2 . . Tunneler 18 | 4 3 . 3 . . 1 1 . . 2 . . . . 4 . . . Hauler 22 | . 1 . 6 . . . 3 6 . 1 . . . . 5 . . . Recycler 60 | 1 2 1 5 3 . 4 9 3 . 13 . . . . 13 6 . . Mechanic 5 | . . . . . . . 2 1 . 2 . . . . . . . . Operator 10 | . . . 2 . . . 3 3 . 1 . . . . 1 . . . Drone 1 | . . . . . . . . . . . . . . . 1 . . . Watcher 22 | . 3 . 4 . . . 5 2 . 3 . . . . 3 1 1 . Swarmer 67 | . 9 . 10 4 . 7 11 . 9 9 3 4 . 1 . . . . Cutter 1 | . . . . . . . . . 1 . . . . . . . . . Grunt 126 | . 11 2 13 1 . 11 9 17 10 37 . . . . 9 6 . . Brawler 10 | . . . 1 . . 3 . . 3 2 . . . 1 . . . . Duelist 7 | . . . . . . 1 . . 2 3 . . . . 1 . . . Protector 4 | . . . . . . . . . . 4 . . . . . . . . Sentry 37 | . . . 8 . . . 9 7 1 5 1 1 . . 1 4 . . Hunter 15 | . . . . . . 1 2 . . 2 . . . . 9 1 . . Programmer 10 | . . . . . . . . . 2 5 . . . . 3 . . . Heavy 2 | . . . . . . . 2 . . . . . . . . . . . Cetus Guard 4 | . . . . . . . . . . . . . . . . . 4 . Assembled 10 | . . . . 10 . . . . . . . . . . . . . . Thug 1 | . . . . . . . . . . . . . . . . 1 . . Best Kill Streak 36 | 3 7 2 8 5 . 7 9 36 4 16 4 4 . 2 19 3 3 . Combat Bots Only 10 | . 6 2 7 4 . 6 4 6 4 10 4 4 . 2 4 3 3 . Max Kills in Single Turn 8 | 1 3 1 3 2 . 3 3 3 3 8 2 1 . 1 2 2 2 . Gunslinging 1 | . 1 . 1 . . . 1 1 1 1 . . . . . . . . Exploded 4 | . 2 . 3 2 . 3 3 . 3 4 2 . . . . . . . Melee . | . . . . . . . . . . . . . . . . . . . Uniques/NPCs Destroyed . | . . . . . . . . . . . . . . . . . . . Combat | -11 -10 -10 -9 -9 -9 -8 -8 -8 -8 -7 -7 -7 -7 -6 -6 -6 -6 -6 -------- Run | Yrd Mat Min Mat Min Exi Min Mat Sto Gar Fac Low Low Dat Pro Fac Ext Cet Arc Hostile Shots Fired 1413 | . 88 14 70 32 . 72 103 69 37 318 87 35 . 19 347 107 15 . Missed 469 | . 23 3 23 11 . 19 26 22 11 100 28 16 . 9 130 41 7 . Hits 944 | . 65 11 47 21 . 53 77 47 26 218 59 19 . 10 217 66 8 . Melee 9 | . . . 2 1 . 1 . . . 4 . . . . 1 . . . Projectile 935 | . 65 11 45 20 . 52 77 47 26 214 59 19 . 10 216 66 8 . AOE 5 | . . . . . . . . . 1 . . . . . 4 . . . Critical Strikes 25 | . 1 . 2 1 . 2 2 4 1 5 . . . . 3 2 2 . Actively Blocked 1 | . . . . . . . . . . 1 . . . . . . . . Part Disruptions 3 | . . . . . . . . . . . . 2 . . 1 . . . Damage Taken 14321 | . 670 151 570 242 . 775 1746 775 599 3236 575 360 . 82 3472 631 151 286 Core 2180 | . 127 48 32 38 . 73 238 30 58 412 149 98 . 20 652 149 . 56 Absorbed by Shields 266 | . . . . . . . . . . . . . . . . 230 36 . Redirected to Shielding 248 | . . . . . . . 116 . . 50 . . . . 82 . . . Ignored by Resistances 346 | . . . . . . . . . . . . . . . 164 132 50 . Regen/Repaired (Parts) 1112 | . 164 . 249 . . . 375 201 . . . . . . 123 . . . Core Remaining (%) 47 | 100 . 30 . . . 64 . . 40 . . . . 3 . . . . Volleys Fired 983 | 20 121 14 66 28 . 51 109 124 62 146 14 13 . 5 129 44 10 27 Largest 4 | 2 2 2 4 4 . 4 4 4 4 4 2 2 . 3 4 4 4 2 Hottest 240 | 40 40 40 100 100 . 100 109 100 111 128 77 80 . 123 163 184 240 70 Shots Fired 3161 | 40 239 28 258 106 . 192 417 430 167 544 20 25 . 15 449 142 36 53 Gun 2895 | 40 237 28 256 104 . 188 412 425 153 508 . 4 . 10 413 63 1 53 Cannon 208 | . . . . . . . . 5 . 8 19 21 . 5 36 79 35 . Launcher 58 | . 2 . 2 2 . 4 5 . 14 28 1 . . . . . . . Special . | . . . . . . . . . . . . . . . . . . . Kinetic 3077 | 40 237 28 256 104 . 188 412 430 153 516 19 25 . 10 429 142 35 53 Thermal 14 | . . . . . . . . . . . . . . . 13 . 1 . Explosive 36 | . 2 . 2 2 . 4 5 . 8 12 1 . . . . . . . Electromagnetic 34 | . . . . . . . . . 6 16 . . . 5 7 . . . Robot Hit Streak 30 | 11 13 5 15 5 . 12 25 20 13 17 7 5 . 6 30 17 3 13 Robot Miss Streak 9 | 4 6 3 4 7 . 5 5 3 3 5 1 2 . 2 8 9 3 1 Penetration Max 3 | . . . . . . . 1 . . 1 . . . . 3 2 1 . Secondary Targets 43 | . 4 1 8 2 . 4 5 6 4 6 . . . . 3 . . . Max Gunslinging Chain 2 | . 1 1 2 1 . 1 1 1 1 1 . . . . 1 . . . Shots Hit Robots 1919 | 26 159 19 141 48 . 114 244 226 77 336 10 26 . 10 335 99 15 34 Core Hits 1009 | 12 65 10 67 23 . 50 105 130 50 208 5 11 . 5 168 77 11 12 Critical Kills 25 | . 1 . 2 . . . . 1 . 2 . . . . 4 9 4 2 Critical Parts Destroyed 43 | . . 1 1 . . . 2 . . 3 . 1 . . 8 16 3 8 Critical Strikes 85 | . 1 1 3 . . . 2 1 . 5 1 4 . 2 14 29 12 10 Destroy 75 | . 1 1 3 . . . 2 1 . 5 . 1 . . 12 27 12 10 Blast 7 | . . . . . . . . . . . 1 1 . 1 2 2 . . Corrupt 1 | . . . . . . . . . . . . . . 1 . . . . Impale 2 | . . . . . . . . . . . . 2 . . . . . . Melee Attacks 29 | . . . . . . . . . . . . 13 . . 6 10 . . Impact . | . . . . . . . . . . . . . . . . . . . Slashing 12 | . . . . . . . . . . . . 2 . . . 10 . . Piercing 17 | . . . . . . . . . . . . 11 . . 6 . . . Sneak Attacks 8 | . . . . . . . . . . . . . . . 1 7 . . Combat Hostiles . | . . . . . . . . . . . . . . . . . . . Follow-up Attacks 1 | . . . . . . . . . . . . 1 . . . . . . Damage Inflicted 43319 | 281 1622 155 2738 1190 . 2517 4922 4507 1994 10936 448 964 . 178 6407 2962 609 889 Guns 31032 | 281 1406 155 2529 870 . 1973 4112 4507 1403 6149 . 21 . 91 5537 1109 . 889 Cannons 3398 | . . . . . . . . . . 147 254 402 . 87 637 1262 609 . Explosions 7518 | . 216 . 209 319 . 544 805 . 591 4640 194 . . . . . . . Melee 1338 | . . . . . . . . . . . . 541 . . 206 591 . . Ramming 33 | . . . . 1 . . 5 . . . . . . . 27 . . . Kinetic 34013 | 281 1406 155 2529 870 . 1973 4112 4507 1403 6296 254 423 . 100 5835 2371 609 889 Thermal 1948 | . . . . . . . . . . 1744 . . . . 204 . . . Explosive 4336 | . 216 . 209 319 . 544 805 . 411 1638 194 . . . . . . . Electromagnetic 1651 | . . . . . . . . . 180 1258 . . . 78 135 . . . Impact . | . . . . . . . . . . . . . . . . . . . Slashing 670 | . . . . . . . . . . . . 79 . . . 591 . . Piercing 668 | . . . . . . . . . . . . 462 . . 206 . . . Highest Corruption 31 | . . . . . . . . 1 2 19 21 21 21 31 7 8 8 8 Average Corruption 6 | . . . . . . . . 1 1 3 20 21 21 21 6 7 8 2 Corruption Purged 7 | . . . . . . . . . . . . . . . . . . 7 Corruption Blocked . | . . . . . . . . . . . . . . . . . . . Effects 253 | . . . . . . . . 10 29 43 22 23 1 10 29 59 21 6 Message Errors 52 | . . . . . . . . 1 8 10 7 6 1 1 4 11 2 1 Matter Fused 56 | . . . . . . . . 3 1 10 5 6 . 1 7 17 6 . Heat Flow Errors 30 | . . . . . . . . 3 4 2 4 3 . 1 3 6 2 2 Energy Discharges 29 | . . . . . . . . . 6 4 2 4 . 1 3 4 4 1 Parts Rejected 4 | . . . . . . . . . . 3 . . . . 1 . . . Data Loss (minor) 33 | . . . . . . . . . 6 3 2 4 . 3 4 7 4 . Data Loss (major) 10 | . . . . . . . . . 1 2 . . . 1 1 2 2 1 Misfires 8 | . . . . . . . . . 1 3 . . . . 1 3 . . Alerts 9 | . . . . . . . . 1 2 1 . . . 1 . 3 . 1 Misdirections 4 | . . . . . . . . . . 1 2 . . 1 . . . . Weapon Failures 18 | . . . . . . . . 2 . 4 . . . . 5 6 1 . Overload Shots 1 | . . . . . . . . . . . . . . . . . 1 . Overflow Damage 964 | . 36 . . 4 . 48 23 . . 371 5 239 . . 100 138 . . Projectiles 56 | . . . . . . . . . . . 5 23 . . 23 5 . . Explosions 482 | . 36 . . 4 . 48 23 . . 371 . . . . . . . . Melee 426 | . . . . . . . . . . . . 216 . . 77 133 . . Knockbacks 10 | . . . . . . . . . . . . 1 . . 5 4 . . Impact . | . . . . . . . . . . . . . . . . . . . Kinetic 9 | . . . . . . . . . . . . 1 . . 4 4 . . Secondary 1 | . . . . . . . . . . . . . . . 1 . . . Self-Inflicted Damage 348 | . . . . . . 20 83 . 78 131 24 . . . 12 . . . Shots 9 | . . . . . . 1 2 . 2 3 1 . . . . . . . Rammed 5 | . . . . 1 . . 1 . . . . . . . 3 . . . Targets Rammed 5 | . . . . 1 . . 1 . . . . . . . 3 . . . Kicked . | . . . . . . . . . . . . . . . . . . . Crushed . | . . . . . . . . . . . . . . . . . . . Highest Temperature 476 | . 33 29 281 322 . 349 180 261 257 356 248 313 . 200 317 476 446 231 Average Temperature 77 | . 9 13 68 87 . 78 41 57 47 95 112 111 . 111 71 98 132 122 Received Heat Transfer 3390 | . 264 87 204 6 . 360 261 423 165 921 93 63 . 15 339 180 9 . Effects 12 | . . . . . . . . 1 . 4 . 1 . . . 5 1 . Shutdowns 3 | . . . . . . . . . . 1 . . . . . 1 1 . Energy Bleed 2 | . . . . . . . . 1 . . . 1 . . . . . . Interference 6 | . . . . . . . . . . 3 . . . . . 3 . . Damage (minor) 1 | . . . . . . . . . . . . . . . . 1 . . Siege Activations . | . . . . . . . . . . . . . . . . . . . Martial Activations . | . . . . . . . . . . . . . . . . . . . Shielding Activations . | . . . . . . . . . . . . . . . . . . . Robots Disrupted . | . . . . . . . . . . . . . . . . . . . Combat Hostiles . | . . . . . . . . . . . . . . . . . . . Robots Corrupted . | . . . . . . . . . . . . . . . . . . . Combat Hostiles . | . . . . . . . . . . . . . . . . . . . Parts Fried 1 | . . . . . . . . . . 1 . . . . . . . . Impact Corruptions . | . . . . . . . . . . . . . . . . . . . Robots Melted . | . . . . . . . . . . . . . . . . . . . Combat Hostiles . | . . . . . . . . . . . . . . . . . . . Parts Melted 1 | . . . . . . . . . . 1 . . . . . . . . Heat Transferred 1808 | . . . . . . . . . . 1475 . . . . 333 . . . Parts Sabotaged 3 | . . . . . . . . . . . . . . . 3 . . . Parts Stolen . | . . . . . . . . . . . . . . . . . . . Parts Stripped . | . . . . . . . . . . . . . . . . . . . Power Chain Reactions 6 | . . . . . . . . . 1 5 . . . . . . . . Alert | -11 -10 -10 -9 -9 -9 -8 -8 -8 -8 -7 -7 -7 -7 -6 -6 -6 -6 -6 ------- Run | Yrd Mat Min Mat Min Exi Min Mat Sto Gar Fac Low Low Dat Pro Fac Ext Cet Arc Maximum Alert Level 5 | . . . 2 1 . 1 3 3 5 5 . . . . 2 3 2 . Low Security (%) 37 | 100 100 100 34 91 . 86 33 . . . . . . . 69 14 . 100 Level 1 17 | . . . 18 8 . 13 38 9 . . . . . . 25 49 63 . Level 2 24 | . . . 46 . . . 22 84 24 . . . . . 4 32 36 . Level 3 4 | . . . . . . . 5 5 18 3 . . . . . 3 . . Level 4 7 | . . . . . . . . . 14 61 . . . . . . . . Level 5 7 | . . . . . . . . . 42 20 . . . . . . . . High Security 1 | . . . . . . . . . . 14 . . . . . . . . Max Security . | . . . . . . . . . . . . . . . . . . . Peak Influence 2668 | 15 184 92 633 235 . 263 762 818 2603 2668 . . . . 437 899 498 176 Initial 1366 | . . 52 . 235 . . 24 318 526 1366 . . . . 31 183 498 128 Average 534 | 2 85 21 341 109 . 130 318 499 1390 1577 . . . . 177 389 380 62 Influence Increases 13640 | 35 626 60 1154 173 . 653 1369 1134 2157 2359 165 240 . 170 1194 1523 348 280 Destroy 0b10 Robot/C 6460 | . 400 40 640 100 . 460 700 520 620 1280 80 100 . 100 480 680 160 100 Destroy 0b10 Robot/NC 1345 | 35 70 10 120 15 . 40 160 325 . 225 . 10 . . 205 90 10 30 Destroy Leader 1258 | . 78 10 160 20 . 80 226 146 10 258 10 10 . . 156 94 . . Allied During Kill 911 | . . . . . . . 10 12 39 19 . . . 25 . 572 140 94 Successful Hack 330 | . 18 . 52 7 . . 70 5 40 63 . . . . 49 26 . . Select Force Hacks 150 | . 30 . 120 . . . . . . . . . . . . . . . Disable Machine 600 | . . . 45 15 . 15 90 90 15 255 . . . . . 15 15 45 Anti-Garrison Action 1300 | . . . . . . . . . 1300 . . . . . . . . . Destroy Structure 461 | . 15 . 17 16 . 28 68 6 133 109 . . . . 4 31 23 11 Lose Combat Pursuer 825 | . 15 . . . . 30 45 30 . 150 75 120 . 45 300 15 . . Influence Decreases 13474 | 35 492 194 549 778 . 589 679 1078 364 2304 1248 590 1225 120 869 1008 918 434 Entered New Map 5753 | . . 82 . 370 . . 40 436 284 1237 984 300 1225 . 19 192 392 192 Time Decay 5983 | 35 404 112 549 408 . 559 549 612 . 577 214 270 . 100 470 586 326 212 Search Patrol Dispatched 100 | . . . . . . . . . . . . . . . 100 . . . Lost Part 600 | . 40 . . . . 30 60 10 . 150 50 20 . . 220 10 . 10 Lost Ally 690 | . . . . . . . 30 20 80 40 . . . 20 60 220 200 20 Purge Threat 348 | . 48 . . . . . . . . 300 . . . . . . . . Squads Dispatched 63 | . 4 . 6 1 . . 9 4 . 26 . . . . 10 3 . . Investigation 15 | . 3 . 5 1 . . 1 1 . 1 . . . . 1 2 . . Extermination 6 | . . . . . . . . . . 4 . . . . 2 . . . Reinforcement 18 | . 1 . 1 . . . 5 2 . 3 . . . . 5 1 . . Assault 15 | . . . . . . . . . . 15 . . . . . . . . Garrison 9 | . . . . . . . 3 1 . 3 . . . . 2 . . . Intercept . | . . . . . . . . . . . . . . . . . . . Searches Triggered 1 | . . . . . . . . . . . . . . . 1 . . . Construction Impeded 4 | . . . . . . . . . . 2 . . . . 1 1 . . Haulers Reinforced 3 | . . . . . . . . . . . . . . . 3 . . . Active Scanning Responses . | . . . . . . . . . . . . . . . . . . . Cargo Convoy Interrupts 1 | . . . . . . . . . . . . . . . 1 . . . Stealth | -11 -10 -10 -9 -9 -9 -8 -8 -8 -8 -7 -7 -7 -7 -6 -6 -6 -6 -6 --------- Run | Yrd Mat Min Mat Min Exi Min Mat Sto Gar Fac Low Low Dat Pro Fac Ext Cet Arc Distress Signals 26 | . 2 . 3 . . . 4 4 . 6 . . . . 4 1 2 . Communications Jammed . | . . . . . . . . . . . . . . . . . . . Distress Signals . | . . . . . . . . . . . . . . . . . . . Times Spotted 474 | . 29 2 35 15 . 26 51 36 33 96 10 13 . 9 70 40 9 . Peak Tracking Total 13 | . 6 2 8 4 . 4 5 7 6 7 5 4 . 5 13 6 5 . Tactical Retreats 35 | . 1 . . . . 2 2 1 . 7 3 4 . 2 12 1 . . Traps | -11 -10 -10 -9 -9 -9 -8 -8 -8 -8 -7 -7 -7 -7 -6 -6 -6 -6 -6 ------- Run | Yrd Mat Min Mat Min Exi Min Mat Sto Gar Fac Low Low Dat Pro Fac Ext Cet Arc Traps Triggered 18 | . 2 . . . . . . 1 9 2 . 2 . . 1 1 . . Indirectly 1 | . . . . . . . . . 1 . . . . . . . . . Trap Hack Attempts . | . . . . . . . . . . . . . . . . . . . Triggered . | . . . . . . . . . . . . . . . . . . . Disarmed . | . . . . . . . . . . . . . . . . . . . Reprogrammed 5 | . . . 5 . . . . . . . . . . . . . . . Reused . | . . . . . . . . . . . . . . . . . . . Traps Extracted . | . . . . . . . . . . . . . . . . . . . Installed . | . . . . . . . . . . . . . . . . . . . Triggered . | . . . . . . . . . . . . . . . . . . . Machines | -11 -10 -10 -9 -9 -9 -8 -8 -8 -8 -7 -7 -7 -7 -6 -6 -6 -6 -6 ---------- Run | Yrd Mat Min Mat Min Exi Min Mat Sto Gar Fac Low Low Dat Pro Fac Ext Cet Arc Machines Disabled 51 | . . . 3 1 . 1 6 6 8 17 1 1 . . . 3 1 3 Max in Single Turn 5 | . . . 1 1 . 1 2 1 1 5 1 1 . . . 1 1 1 Garrison Relay 5 | . . . . . . . . . 5 . . . . . . . . . Phase Generator 1 | . . . . . . . . . 1 . . . . . . . . . Machines Repaired . | . . . . . . . . . . . . . . . . . . . Machines Dismantled . | . . . . . . . . . . . . . . . . . . . Machines Sabotaged . | . . . . . . . . . . . . . . . . . . . Overloaded Fab Kills . | . . . . . . . . . . . . . . . . . . . Hacking | -11 -10 -10 -9 -9 -9 -8 -8 -8 -8 -7 -7 -7 -7 -6 -6 -6 -6 -6 --------- Run | Yrd Mat Min Mat Min Exi Min Mat Sto Gar Fac Low Low Dat Pro Fac Ext Cet Arc Machines Accessed 95 | . 10 1 16 2 . . 17 10 3 11 1 1 4 . 10 8 1 . Terminals 59 | . 8 1 10 1 . . 10 7 3 5 . . . . 5 8 1 . Fabricators 4 | . . . . . . . . . . 2 . . . . 2 . . . Repair Stations 10 | . 1 . 2 . . . 2 1 . 2 . . . . 2 . . . Recycling Units 8 | . 1 . 2 . . . 2 1 . 1 . . . . 1 . . . Scanalyzers 5 | . . . 2 . . . 2 . . 1 . . . . . . . . Garrison Access 2 | . . . . . . . 1 1 . . . . . . . . . . Total Hacks 359 | . 39 3 80 4 . . 78 26 7 41 1 1 30 . 28 19 2 . Successful 226 | . 24 1 49 2 . . 52 15 3 25 1 1 30 . 13 9 1 . Failed 130 | . 14 2 30 2 . . 25 11 4 16 . . . . 15 10 1 . Catastrophic 10 | . 2 . 2 . . . 1 . 1 1 . . . . 1 1 1 . Database Lockouts 3 | . 1 . 1 . . . 1 . . . . . . . . . . . Manual 198 | . 28 2 52 3 . . 40 15 3 14 . . . . 21 19 1 . Terminals 213 | . 30 3 59 3 . . 41 16 7 16 . . . . 17 19 2 . Fabricators 13 | . . . . . . . . . . 7 . . . . 6 . . . Repair Stations 46 | . 8 . 10 . . . 15 5 . 4 . . . . 4 . . . Recycling Units 21 | . 1 . 6 . . . 8 2 . 3 . . . . 1 . . . Scanalyzers 28 | . . . 5 . . . 12 . . 11 . . . . . . . . Garrison Access 5 | . . . . . . . 2 3 . . . . . . . . . . Terminal Hacks 70 | . 3 1 14 2 . . 7 2 3 4 1 1 30 . 1 . 1 . Record 13 | . . 1 . . . . . . . . . . 11 . . . 1 . Part Schematic 9 | . . . . . . . . . . . . . 9 . . . . . Robot Schematic 8 | . . . . 1 . . . . . . . . 7 . . . . . Robot Analysis 16 | . 2 . 8 . . . 5 . . 1 . . . . . . . . Prototype ID Bank 8 | . . . 3 . . . 2 . . . . . 3 . . . . . Open Door 5 | . . . . 1 . . . 2 . . 1 1 . . . . . . Branch Access Points 2 | . . . . . . . . . . 1 . . . . 1 . . . Emergency Access Points 1 | . . . . . . . . . 1 . . . . . . . . . Terminal Index 1 | . . . 1 . . . . . . . . . . . . . . . Unreport Threat 3 | . 1 . . . . . . . . 2 . . . . . . . . Reprogram Traps 1 | . . . 1 . . . . . . . . . . . . . . . Zone Layout 1 | . . . 1 . . . . . . . . . . . . . . . Garrison Registry 1 | . . . . . . . . . 1 . . . . . . . . . Security Stations 1 | . . . . . . . . . 1 . . . . . . . . . Fabricator Hacks 3 | . . . . . . . . . . 2 . . . . 1 . . . Network Status 1 | . . . . . . . . . . 1 . . . . . . . . Load Schematic 2 | . . . . . . . . . . 1 . . . . 1 . . . Repair Station Hacks 34 | . 8 . 8 . . . 11 4 . 1 . . . . 2 . . . Scan Component 18 | . 4 . 4 . . . 6 2 . 1 . . . . 1 . . . Repair 16 | . 4 . 4 . . . 5 2 . . . . . . 1 . . . Recycling Unit Hacks 2 | . . . 1 . . . 1 . . . . . . . . . . . Retrieve Components 2 | . . . 1 . . . 1 . . . . . . . . . . . Scanalyzer 21 | . . . 2 . . . 9 . . 10 . . . . . . . . Insert Component 6 | . . . 1 . . . 2 . . 3 . . . . . . . . Analyze 8 | . . . 1 . . . 3 . . 4 . . . . . . . . Retrieve Study 7 | . . . . . . . 4 . . 3 . . . . . . . . Garrison Access Hacks 1 | . . . . . . . . 1 . . . . . . . . . . Unlock Access 1 | . . . . . . . . 1 . . . . . . . . . . Unauthorized Hacks 95 | . 13 . 24 . . . 24 8 . 8 . . . . 9 9 . . Terminals 69 | . 12 . 18 . . . 18 5 . 2 . . . . 5 9 . . Track 4 | . 1 . 1 . . . 2 . . . . . . . . . . . Assimilate 2 | . . . . . . . 1 . . . . . . . 1 . . . Botnet 33 | . 6 . 8 . . . 8 2 . 2 . . . . 3 4 . . Disrupt 5 | . . . 3 . . . 2 . . . . . . . . . . . Operators 2 | . . . 1 . . . . . . . . . . . 1 . . . Skim 23 | . 5 . 5 . . . 5 3 . . . . . . . 5 . . Fabricators 6 | . . . . . . . . . . 3 . . . . 3 . . . Liberate 4 | . . . . . . . . . . 2 . . . . 2 . . . Haulers 2 | . . . . . . . . . . 1 . . . . 1 . . . Repair Stations 1 | . . . . . . . . . . 1 . . . . . . . . Mechanics 1 | . . . . . . . . . . 1 . . . . . . . . Recycling Units 15 | . 1 . 4 . . . 5 2 . 2 . . . . 1 . . . Reject 6 | . . . 1 . . . 2 1 . 1 . . . . 1 . . . Recyclers 4 | . . . 1 . . . 1 1 . 1 . . . . . . . . Mask 2 | . . . . . . . 2 . . . . . . . . . . . Tunnel 3 | . 1 . 2 . . . . . . . . . . . . . . . Scanalyzers 2 | . . . 2 . . . . . . . . . . . . . . . Extract 2 | . . . 2 . . . . . . . . . . . . . . . Garrison Access 2 | . . . . . . . 1 1 . . . . . . . . . . Reprogram 2 | . . . . . . . 1 1 . . . . . . . . . . Data Cores Recovered 4 | . . . 1 . . . . 1 . . . . . . 1 1 . . Used 2 | . . . . . . . . . . . . . . . 1 1 . . Hacking Detections 84 | . 9 1 13 1 . . 17 9 3 11 . . . . 10 8 2 . Full Trace Events 10 | . . 1 1 1 . . 2 1 2 1 . . . . . 1 . . Feedback Events . | . . . . . . . . . . . . . . . . . . . Feedback Blocked . | . . . . . . . . . . . . . . . . . . . Robot Schematics Acquired 8 | . . . . 1 . . . . . . . . 7 . . . . . Robots Built . | . . . . . . . . . . . . . . . . . . . Authchips . | . . . . . . . . . . . . . . . . . . . Time . | . . . . . . . . . . . . . . . . . . . Total Robot Build Rating . | . . . . . . . . . . . . . . . . . . . Part Schematics Acquired 40 | . . . 26 . . . 2 . . 3 . . 9 . . . . . Parts Built . | . . . . . . . . . . . . . . . . . . . Authchips . | . . . . . . . . . . . . . . . . . . . Time . | . . . . . . . . . . . . . . . . . . . Total Part Build Rating . | . . . . . . . . . . . . . . . . . . . Part Studies Acquired 7 | . . . . . . . 4 . . 3 . . . . . . . . Parts Repaired 16 | . 4 . 4 . . . 5 2 . . . . . . 1 . . . Time 572 | . 104 . 152 . . . 177 89 . . . . . . 50 . . . Parts Recycled . | . . . . . . . . . . . . . . . . . . . Recycled Matter . | . . . . . . . . . . . . . . . . . . . Retrieved Matter . | . . . . . . . . . . . . . . . . . . . Retrieved Components 7 | . . . 5 . . . 2 . . . . . . . . . . . Parts Scanalyzed 6 | . . . 1 . . . 2 . . 3 . . . . . . . . Part Schematics Acquired 6 | . . . 1 . . . 2 . . 3 . . . . . . . . Parts Damaged 1 | . . . . . . . . . . 1 . . . . . . . . Bothacking | -11 -10 -10 -9 -9 -9 -8 -8 -8 -8 -7 -7 -7 -7 -6 -6 -6 -6 -6 ------------ Run | Yrd Mat Min Mat Min Exi Min Mat Sto Gar Fac Low Low Dat Pro Fac Ext Cet Arc Used RIF Installer . | . . . . . . . . . . . . . . . . . . . Robots Hacked . | . . . . . . . . . . . . . . . . . . . Non-combat . | . . . . . . . . . . . . . . . . . . . Combat . | . . . . . . . . . . . . . . . . . . . Robot Hacks Applied . | . . . . . . . . . . . . . . . . . . . Relay Couplers Released 23 | . . . . . . . . . 20 3 . . . . . . . . Machine Destruction 20 | . . . . . . . . . 20 . . . . . . . . . Programmers 3 | . . . . . . . . . . 3 . . . . . . . . Fabnet Peak Effective % . | . . . . . . . . . . . . . . . . . . . Robots Rewired 25 | . . . . . . . . . 6 . . . . . . 19 . . Allies Hacked . | . . . . . . . . . . . . . . . . . . . Hacks Repelled . | . . . . . . . . . . . . . . . . . . . Allies | -11 -10 -10 -9 -9 -9 -8 -8 -8 -8 -7 -7 -7 -7 -6 -6 -6 -6 -6 -------- Run | Yrd Mat Min Mat Min Exi Min Mat Sto Gar Fac Low Low Dat Pro Fac Ext Cet Arc Total Allies 45 | . . . . . . . 3 2 6 . . . . 1 3 25 5 . Largest Group 14 | . . . . . . . 2 2 4 3 . . . 1 3 14 12 7 Highest-Rated Group 773 | . . . . . . . 48 32 133 109 . . . 96 87 507 773 456 Highest-Rated Ally 159 | . . . . . . . 24 24 39 39 . . . 96 29 159 152 96 Initial Warlord ECA Mod 9 | . . . . . . . . . . 9 9 9 9 8 8 8 8 8 Total Orders . | . . . . . . . . . . . . . . . . . . . Ally Attacks 345 | . . . . . . . 8 12 27 15 . . . 15 23 170 51 24 Total Damage 8424 | . . . . . . . 220 228 403 151 . . . 630 345 4254 1489 704 Kills 56 | . . . . . . . 3 3 4 1 . . . 3 1 31 5 5 Allies Corrupted 1 | . . . . . . . . . . 1 . . . . . . . . Allies Melted . | . . . . . . . . . . . . . . . . . . . Intel | -11 -10 -10 -9 -9 -9 -8 -8 -8 -8 -7 -7 -7 -7 -6 -6 -6 -6 -6 ------- Run | Yrd Mat Min Mat Min Exi Min Mat Sto Gar Fac Low Low Dat Pro Fac Ext Cet Arc Active Infowar (turns) 5013 | 105 758 . . . . . 103 . . 281 . . . . 730 1821 722 493 IFF 155 | . . . . . . . . . . . . . . . 155 . . . Terrain 966 | 105 758 . . . . . 103 . . . . . . . . . . . Decoding 3611 | . . . . . . . . . . . . . . . 575 1821 722 493 Machine Analysis 281 | . . . . . . . . . . 281 . . . . . . . . Robot Analysis Total 16 | . 2 . 8 . . . 5 . . 1 . . . . . . . . Derelict Logs Recovered 7 | . . 1 . 1 . . . . . . 1 3 . 1 . . . . Drone Launches . | . . . . . . . . . . . . . . . . . . . Drone Recoveries . | . . . . . . . . . . . . . . . . . . . Decoded 0b10 Intel 59 | . . . . . . . . . . . . . . . 5 40 7 7 Traps 2 | . . . . . . . . . . . . . . . . 2 . . Emergency Access 7 | . . . . . . . . . . . . . . . 4 3 . . Items 23 | . . . . . . . . . . . . . . . 1 20 1 1 Machines 16 | . . . . . . . . . . . . . . . . 9 4 3 Patrols 5 | . . . . . . . . . . . . . . . . 5 . . Exits 6 | . . . . . . . . . . . . . . . . 1 2 3 Exploration | -11 -10 -10 -9 -9 -9 -8 -8 -8 -8 -7 -7 -7 -7 -6 -6 -6 -6 -6 ------------- Run | Yrd Mat Min Mat Min Exi Min Mat Sto Gar Fac Low Low Dat Pro Fac Ext Cet Arc Turns Passed 25360 | 199 1696 529 3247 1040 589 1640 3420 2014 3106 2065 452 599 51 217 1460 1821 722 493 Spaces Moved 13866 | 81 902 614 1236 563 268 615 1605 800 1129 929 699 887 80 347 1554 1096 338 123 Core 146 | 2 6 . . . . . . . . . . . . . 58 80 . . Treads 8457 | 79 604 . 1202 563 268 615 1605 800 1129 719 . . . . . 431 338 104 Legs 96 | . 35 . . . . . . . . . . . . . . 61 . . Wheels 1515 | . 257 614 34 . . . . . . 86 . . . . . 524 . . Hover 3652 | . . . . . . . . . . 124 699 887 80 347 1496 . . 19 Flight . | . . . . . . . . . . . . . . . . . . . Fastest Speed 44 | 50 80 80 80 160 160 240 160 166 250 105 56 49 56 49 44 50 160 110 Average Speed 147 | 157 136 80 230 168 217 240 172 193 250 167 56 55 56 55 53 124 160 216 Slowest Speed 250 | 160 200 80 240 240 240 240 246 250 250 250 56 121 56 121 126 160 160 240 Overloaded Moves 133 | . . . . . . . . . . 22 . 41 . 17 53 . . . Propulsion Burnouts . | . . . . . . . . . . . . . . . . . . . Robots Hopped . | . . . . . . . . . . . . . . . . . . . Potential Cave-ins . | . . . . . . . . . . . . . . . . . . . Cave-ins Triggered . | . . . . . . . . . . . . . . . . . . . Exploration Rate (%) 73 | 3 87 99 94 93 62 99 97 92 95 30 80 67 68 48 27 97 78 83 Regions Visited 18 Branch Regions 12 Pre-discovered Areas 13 | . 2 1 5 1 . . 2 . . . 1 . 1 . . . . . Known Exits Taken 10 | . 1 1 . 1 . 1 1 1 . 1 . . . 1 1 . 1 . Unknown Exits Taken 7 | 1 . . 1 . 1 . . . . . 1 1 1 . . 1 . . Scrap Searched 18 | . . 1 . 1 . 2 . . . . 2 8 . 4 . . . . Spaces Dug 9 | . . . . . . . . . . . 1 3 . . 1 1 . 3 Terrain Destroyed 417 | . 16 . 11 24 . 39 67 . 101 106 9 3 . 2 2 16 8 13 Melee 4 | . . . . . . . . . . . . 3 . . . 1 . . Projectile 47 | . . . . 2 . 1 . . . 1 3 . . 2 2 15 8 13 AOE 366 | . 16 . 11 22 . 38 67 . 101 105 6 . . . . . . . Terrain Rammed . | . . . . . . . . . . . . . . . . . . . Walls Destroyed . | . . . . . . . . . . . . . . . . . . . Machines Disabled . | . . . . . . . . . . . . . . . . . . . Actions | -11 -10 -10 -9 -9 -9 -8 -8 -8 -8 -7 -7 -7 -7 -6 -6 -6 -6 -6 --------- Run | Yrd Mat Min Mat Min Exi Min Mat Sto Gar Fac Low Low Dat Pro Fac Ext Cet Arc Total 16959 | 113 1166 629 1539 610 275 691 2036 1088 1336 1220 739 951 85 360 1890 1439 495 297 Wait 1121 | . 105 . 169 . . . 220 113 19 28 . 13 . . 120 83 117 134 Move 13848 | 80 901 613 1235 562 267 614 1604 799 1128 928 698 886 79 346 1553 1095 337 123 Hop . | . . . . . . . . . . . . . . . . . . . Pick Up 177 | 6 11 . 20 5 4 11 26 12 4 26 5 6 . 3 11 19 5 3 Fast Attach 101 | 7 7 . 6 . . . 6 5 . 8 3 6 3 1 21 22 3 3 Attach 53 | . 2 . 2 1 . 3 9 2 . 16 4 . . . 10 3 1 . Detach 13 | . 1 . 2 . . . 1 . . 3 . 1 . . 4 1 . . Swap 207 | . 8 1 16 5 1 8 30 16 23 46 5 6 . 1 16 11 12 2 Drop 206 | . 10 1 23 8 3 4 30 17 6 19 10 9 3 4 17 27 10 5 Fire 983 | 20 121 14 66 28 . 51 109 124 62 146 14 13 . 5 129 44 10 27 Melee 27 | . . . . . . . . . . . . 11 . . 6 10 . . Ram 3 | . . . . . . . . . . . . . . . 3 . . . Kick . | . . . . . . . . . . . . . . . . . . . Crush 2 | . . . . 1 . . 1 . . . . . . . . . . . Escape Stasis 20 | . . . . . . . . . 12 . . . . . . 8 . . Rewire 198 | . . . . . . . . . 82 . . . . . . 116 . . Trap . | . . . . . . . . . . . . . . . . . . . Miscellaneous . | . . . . . . . . . . . . . . . . . . . Route ------- -11/Scrapyard -10/Materials (discovered 5 exits: *Mat x3 / *Min / *Sub) -10/Mines (discovered 3 exits: *Mat x2 / *Sub) -9/Materials (discovered 4 exits: *Mat x3 / *Min) -9/Mines (discovered 3 exits: *Mat x2 / *Exi) -9/Exiles -8/Mines (discovered 2 exits: *Mat x2) -8/Materials (discovered 5 exits: *Fac x3 / *Sto x2) -8/Storage (discovered 3 exits: *Fac / *Rec / Gar) -8/Garrison (discovered 3 exits: *Fac x3) -7/Factory (discovered 4 exits: *Fac x2 / *Low x2) -7/Lower Caves -7/Lower Caves -7/Data Miner -6/Proximity Caves -6/Factory (discovered 4 exits: *Low x2 / *Ext x2) -6/Extension (discovered 3 exits: *Fac x2 / *Cet) -6/Cetus (discovered 2 exits: *Fac / *Arc) -6/Archives (discovered 3 exits: *Fac / *Hub x2) History --------- Turn | Location | Event 16 | -11/Scrapyard | Discovered new exit (range 15) 200 | -11/Scrapyard | Entered Materials 301 | -10/Materials | Build established: Mutant 404 | -10/Materials | Discovered new exit (range 16) 853 | -10/Materials | Discovered new exit (range 8) 1196 | -10/Materials | Identified exit to Materials 1196 | -10/Materials | Identified exit to Subcaves 1224 | -10/Materials | Central database locked down 1263 | -10/Materials | Learned location of 1 exit from Recycling 1321 | -10/Materials | Loaded intel: 10 trap records 1371 | -10/Materials | Learned location of Mines (-8) 1411 | -10/Materials | Learned location of 1 exit from Storage 1416 | -10/Materials | Core integrity fell below 50% 1441 | -10/Materials | Learned location of 2 exits from Mines 1495 | -10/Materials | Identified exit to Mines 1643 | -10/Materials | Learned 2 Materials zone layouts 1702 | -10/Materials | Repaired Ion Engine 1729 | -10/Materials | Repaired Lgt. Assault Rifle 1757 | -10/Materials | Repaired Lgt. Assault Rifle 1784 | -10/Materials | Repaired Lgt. Assault Rifle 1896 | -10/Materials | Entered Mines 1999 | -10/Mines | Found a Scrap Suit stashed away for nefarious purposes 2000 | -10/Mines | Learned 2 Materials zone layouts 2085 | -10/Mines | Build established: Scavenger-Mutant 2207 | -10/Mines | Learned location of Storage (-8) 2425 | -10/Mines | Entered Materials 2425 | -9/Materials | Evolved 2 slots: Weapon x2 2426 | -9/Materials | Identified exit to Materials 2760 | -9/Materials | Discovered exit to Materials (range 3) 2875 | -9/Materials | Build established: Gunner 3299 | -9/Materials | Discovered new exit (range 15) 3526 | -9/Materials | Central database locked down 3607 | -9/Materials | Destroyed 7 combat bots 3608 | -9/Materials | Learned Storage stockpile data 3785 | -9/Materials | Learned Storage trap positions 3823 | -9/Materials | Learned location of Zion (-6) 3852 | -9/Materials | Learned location of 1 exit from Recycling 4273 | -9/Materials | Repaired Minigun 4834 | -9/Materials | Repaired Minigun 4874 | -9/Materials | Repaired Minigun 5365 | -9/Materials | Repaired Minigun 5672 | -9/Materials | Entered Mines 5674 | -9/Mines | Identified exit to Exiles 5802 | -9/Mines | Met a Derelict shopkeep closing up shop 6130 | -9/Mines | Assembled infested the area 6704 | -9/Mines | Deemed a non-threat by the Exiles lab entrance 6712 | -9/Mines | Entered Exiles 6754 | -9/Exiles | Met 8R-AWN 6781 | -9/Exiles | Met EX-HEX 6909 | -9/Exiles | Met EX-DEC 7092 | -9/Exiles | Met EX-BIN 7272 | -9/Exiles | Discovered new exit (range 14) 7301 | -9/Exiles | Entered Mines 7751 | -8/Mines | Discovered exit to Materials (range 14) 7967 | -8/Mines | Discovered exit to Materials (range 10) 8941 | -8/Mines | Entered Materials 8941 | -8/Materials | Evolved 2 slots: Propulsion x1, Utility x1 8942 | -8/Materials | Identified exit to Storage 9065 | -8/Materials | Repaired Minigun 9351 | -8/Materials | Build established: Scavenger-Gunner 9389 | -8/Materials | Repaired Med. Treads 9423 | -8/Materials | Repaired Disposable Heat Sink 9468 | -8/Materials | Repaired Gauss Rifle 9507 | -8/Materials | Repaired Minigun 9638 | -8/Materials | Discovered new exit (range 16) 10026 | -8/Materials | Discovered new exit (range 12) 10359 | -8/Materials | Watched by a mysterious "MATRIX" hacker 10799 | -8/Materials | Discovered new exit (range 16) 10890 | -8/Materials | Learned 2 Storage zone layouts 10972 | -8/Materials | Learned Storage security intel 11044 | -8/Materials | Learned 8 Factory zone layouts 11107 | -8/Materials | Learned 4 Recycling zone layouts 11201 | -8/Materials | Learned 8 Factory zone layouts 11313 | -8/Materials | Learned Factory emergency access door positions 11446 | -8/Materials | Garrison activated, responded to threat 11800 | -8/Materials | Build established: Gunner 12301 | -8/Materials | Central database locked down 12361 | -8/Materials | Entered Storage 12361 | -8/Storage | Accompanied by 1 ally 12362 | -8/Storage | Identified exit to Recycling 12363 | -8/Storage | Identified exit to Factory 12365 | -8/Storage | Loaded intel: 9 trap records 12640 | -8/Storage | Repaired Hpw. Shotgun+ 12692 | -8/Storage | Repaired Imp. Assault Rifle 12939 | -8/Storage | Build established: Scavenger-Gunner 13150 | -8/Storage | Used back door to open Recycling access 13259 | -8/Storage | Build established: Gunner 13876 | -8/Storage | Identified exit to Garrison 14297 | -8/Storage | Garrison activated, responded to threat 14375 | -8/Storage | Entered Garrison 14375 | -8/Garrison | Accompanied by 2 allies 14417 | -8/Garrison | Core integrity fell below 50% 15134 | -8/Garrison | Triggered checkpoint 15242 | -8/Garrison | Discovered exit to Factory (range 10) 15292 | -8/Garrison | Triggered checkpoint 15364 | -8/Garrison | Garrison Relay disabled 15503 | -8/Garrison | Triggered checkpoint 15727 | -8/Garrison | Triggered checkpoint 15897 | -8/Garrison | Triggered checkpoint 15975 | -8/Garrison | Garrison Relay disabled 16083 | -8/Garrison | Phase Generator disabled 16125 | -8/Garrison | Garrison Relay disabled 16209 | -8/Garrison | Discovered exit to Factory (range 11) 16564 | -8/Garrison | Triggered checkpoint 16652 | -8/Garrison | Triggered checkpoint 16748 | -8/Garrison | Discovered exit to Factory (range 45) 16748 | -8/Garrison | Discovered exit to Factory (range 34) 16748 | -8/Garrison | Discovered exit to Factory (range 48) 16793 | -8/Garrison | Triggered checkpoint 16823 | -8/Garrison | Garrison Relay disabled 16902 | -8/Garrison | Learned Factory security intel 17191 | -8/Garrison | Triggered checkpoint 17208 | -8/Garrison | Garrison Relay disabled 17481 | -8/Garrison | Entered Factory 17481 | -7/Factory | Accompanied by 3 allies 17481 | -7/Factory | Evolved 2 slots: Propulsion x1, Utility x1 17482 | -7/Factory | Identified exit to Factory 18109 | -7/Factory | Discovered exit to Factory (range 15) 18281 | -7/Factory | First assault squad dispatched 18346 | -7/Factory | Garrison activated, responded to threat 18383 | -7/Factory | Identified exit to Lower Caves 18492 | -7/Factory | Destroyed 10 combat bots 18851 | -7/Factory | Destroyed 10 combat bots 19241 | -7/Factory | Destroyed 7 combat bots 19243 | -7/Factory | High security lockdown imminent 19323 | -7/Factory | High security lockdown engaged 19349 | -7/Factory | Lost 7 parts (1n1u5w) 19435 | -7/Factory | System corruption reached 10% 19534 | -7/Factory | Core integrity fell below 50% 19546 | -7/Factory | Entered Lower Caves 19548 | -7/Lower Caves | Attracted the attention of an 0b10 checkpoint 19567 | -7/Lower Caves | Core integrity fell below 20% 19581 | -7/Lower Caves | Met a Warlord Commander 19582 | -7/Lower Caves | Learned location of Warlord (-5) 19583 | -7/Lower Caves | Warlord Commander delivered Encrypted Comm Array 19586 | -7/Lower Caves | Found Encrypted Comm Array 19597 | -7/Lower Caves | Lost 6 parts (3n3w) 19697 | -7/Lower Caves | Attacked by a delusional Derelict stockpiling parts 19783 | -7/Lower Caves | Learned 4 Factory zone layouts 19847 | -7/Lower Caves | Build established: Mutant 19962 | -7/Lower Caves | Ambushed by wild Derelicts 19974 | -7/Lower Caves | Discovered new exit (range 9) 19998 | -7/Lower Caves | Entered another Lower Caves area 20124 | -7/Lower Caves | Murdered Warlord Statue 20158 | -7/Lower Caves | Found Prototype Device 20176 | -7/Lower Caves | Learned Factory machine intel 20222 | -7/Lower Caves | Learned Factory trap positions 20311 | -7/Lower Caves | Build established: Scavenger-Mutant 20312 | -7/Lower Caves | Learned Factory terminal intel 20368 | -7/Lower Caves | Attracted the attention of an 0b10 checkpoint 20574 | -7/Lower Caves | Discovered new exit (range 13) 20597 | -7/Lower Caves | Entered Data Miner 20597 | -7/Data Miner | Discovered new exit (range 6) 20610 | -7/Data Miner | Met Data Miner 20620 | -7/Data Miner | Learned location of Section 7 (-3) 20620 | -7/Data Miner | Acquired the access code to Warlord's prototype stash 20629 | -7/Data Miner | Received God Mode back door access code from Data Miner 20648 | -7/Data Miner | Entered Proximity Caves 20651 | -6/Proximity Caves | Attracted the attention of an 0b10 checkpoint 20653 | -6/Proximity Caves | Spotted B-75 Beast 20655 | -6/Proximity Caves | Escorted by Enhanced Grunt 20849 | -6/Proximity Caves | Discovered exit to Factory (range 12) 20852 | -6/Proximity Caves | Learned Factory security intel 20865 | -6/Proximity Caves | System corruption reached 30% 20865 | -6/Proximity Caves | Entered Factory 20865 | -6/Factory | Evolved 2 slots: Propulsion x1, Utility x1 20867 | -6/Factory | Loaded intel: 95 trap records 20869 | -6/Factory | Loaded intel: 210 machine locations 20870 | -6/Factory | Loaded intel: 28 terminal locations 20982 | -6/Factory | Build established: Scavenger-Gunner 20983 | -6/Factory | Targeted by mysterious "MATRIX" hacker 21094 | -6/Factory | Identified exit to Lower Caves 21094 | -6/Factory | Identified exit to Extension 21468 | -6/Factory | Spotted B-75 Beast 21499 | -6/Factory | Garrison activated, responded to threat 21520 | -6/Factory | Lost 7 parts (1p2n1u3w) 21565 | -6/Factory | Search patrols dispatched 21717 | -6/Factory | Repaired Cmb. Airjet 22150 | -6/Factory | Build established: Gunner 22199 | -6/Factory | Garrison activated, responded to threat 22281 | -6/Factory | Cargo convoy interrupted 22282 | -6/Factory | Core integrity fell below 50% 22317 | -6/Factory | Lost 10 parts (1p5n1u3w) 22325 | -6/Factory | Entered Extension 22344 | -6/Extension | Rescued A7 22344 | -6/Extension | Core integrity fell below 20% 22575 | -6/Extension | Rescued a captive Derelict 22625 | -6/Extension | Rescued a captive Derelict 22757 | -6/Extension | Rescued a captive Derelict 22804 | -6/Extension | Found Hvy. Reactive Plating 22985 | -6/Extension | Build established: Commander-Gunner 23125 | -6/Extension | Spotted B-75 Beast 23139 | -6/Extension | Allies destroyed B-75 Beast 23151 | -6/Extension | Spotted B-75 Beast 23164 | -6/Extension | Allies destroyed B-75 Beast 23199 | -6/Extension | Lost 6 allies 23230 | -6/Extension | Identified exit to Factory 23317 | -6/Extension | Build established: Scavenger-Gunner 23739 | -6/Extension | Rescued a captive Derelict 23739 | -6/Extension | Rescued a captive Derelict 23820 | -6/Extension | Discovered exit to Factory (range 10) 23821 | -6/Extension | Discovered new exit (range 6) 23931 | -6/Extension | Build established: Commander-Gunner 24050 | -6/Extension | Disrupted transfer network 24146 | -6/Extension | Entered Cetus 24146 | -6/Cetus | Accompanied by 12 allies (A7) 24151 | -6/Cetus | Acquired a Cetus Manufacturing Module code from A7 24224 | -6/Cetus | Spotted Cetus Guard 24224 | -6/Cetus | Spotted Cetus Guard 24226 | -6/Cetus | Destroyed Cetus Guard 24229 | -6/Cetus | Spotted Cetus Guard 24230 | -6/Cetus | Spotted Cetus Guard 24240 | -6/Cetus | Destroyed Cetus Guard 24240 | -6/Cetus | Destroyed Cetus Guard 24241 | -6/Cetus | Allies destroyed Cetus Guard 24271 | -6/Cetus | Lost 6 allies 24337 | -6/Cetus | Started Cetus Manufacturing Module 24362 | -6/Cetus | Manufactured an Enhanced Grunt 24387 | -6/Cetus | Manufactured an Enhanced Grunt 24412 | -6/Cetus | Manufactured an Enhanced Grunt 24437 | -6/Cetus | Manufactured an Enhanced Grunt 24462 | -6/Cetus | Manufactured an Enhanced Grunt 24560 | -6/Cetus | Escorted A7 to Cetus Mainframe 24566 | -6/Cetus | Identified exit to Archives 24704 | -6/Cetus | Spotted Cetus Guard 24707 | -6/Cetus | Spotted Cetus Guard 24709 | -6/Cetus | Spotted Cetus Guard 24712 | -6/Cetus | Spotted Cetus Guard 24716 | -6/Cetus | Destroyed Cetus Guard 24721 | -6/Cetus | Allies destroyed Cetus Guard 24727 | -6/Cetus | Allies destroyed Cetus Guard 24730 | -6/Cetus | Allies destroyed Cetus Guard 24734 | -6/Cetus | Extracted ID and sensor layout for unrecognized location from A7's data core 24747 | -6/Cetus | Found Prototype Device 24747 | -6/Cetus | Identified Exp. Thermal Shield 24757 | -6/Cetus | Lost 4 allies 24764 | -6/Cetus | Met Revision 17 24868 | -6/Cetus | Entered Archives 24868 | -6/Archives | Accompanied by 7 allies 24948 | -6/Archives | Identified exit to Hub_04(d) 25179 | -6/Archives | Build established: Scavenger-Gunner 25290 | -6/Archives | Met Zhirov 25296 | -6/Archives | Reinforcements dispatched to Archives 25341 | -6/Archives | Reinforcements dispatched to Archives 25361 | -6/Archives | Zhirov detonated Archives 25361 | -6/Archives | Core destroyed Last Messages --------------- 25332_ Dropped Imp. Medium Treads. 25333_ Acquired Gravmag System+. 25337_ >> DECODED: Adv. Heat Sink location. 25340_ Perun suffers critical hit (Burn). 25341_ ALERT: Multiple hostiles detected in Archives area, dispatching reinforcements. 25343_ Svarog warps through subspace. 25351_ Slug penetrates O-32 Director. 25351_ Archive Hub disabled. 25351_ Slug penetrates O-32 Director. 25351_ O-32 Director suffers critical hit (Destroy). 25351_ Destroyed Lgt. Angular Momentum Engine. 25354_ Slug penetrates O-32 Director. 25354_ O-32 Director suffers critical hit (Destroy). 25354_ O-32 Director destroyed. 25359_ Dropped Adv. Heat Sink. 25359_ Acquired Gravmag System+. 25361_ Archive Terminal disabled. 25361_ Imp. Hover Unit destroyed. 25361_ Enhanced Grunt destroyed. Map ----- +----------------------------------------------------+ | ???????????????##"""" " "#%= ????????????????? | | ??????????????##"#"" "%!= #????????????????? | | ??############# # === #???????????????? | | ??# "???????????????? | | ??# ""??????????????? | | ??# ""?????????????? | | ??#####+######### V?????????????? | | ??# #"""" ""?????????????? | | ??# # """ """?????????????? | | ??# "" " " = ""??????????????? | | ??# """"""" V% ###?????????????? | | ??#" """""""" ""= ????????????? | | ??# """"""""#" ????????>???? | | ??#"""""""""# ????????????? | | ??######### ????????????? | | ???????????# ????????????? | | ???????????# ???????????? | | ???????????# ???????????? | | ????????????# ??????????? | | ????????????# ??????????? | | ????????????# ??????????? | | ????????????# #??????????? | | ????????????# #??????????? | | ????????????# #???????????? | | ????????????# % #???????????? | | ?????????????# @ #?????????????? | | ??????????????# #???????????????? | | ??????????????#### > # ""##???????????????? | | ?????????????????# # """#????????????????? | | ?????????????????#########;###????????????????? | | ??????????????????????????? #?????????????????? | | ???????????????????????????? ?????????????????? | | | | | | | | | | | | | | | | | | | | | | | | | | | | | | | | | | | | | +----------------------------------------------------+ Best States ------------- Heat Dissipation 65 Coolant Potential 65 Energy Generation 25 Energy Capacity 350 Matter Stores 300 Matter Capacity 300 Sight Range 16 Terrain Scan Range 16 Terrain Scan Density 10 Additional Mass Support 12 Armor Coverage 600 Resistance: KI 40 Core Shielding 20 Propulsion Shielding 33 Weapon Shielding 66 Evasion (%) 56 Targeting Accuracy 16 Recoil Reduction 4 Kinecelleration 30 Offensive Hacking 24 Item Schematics ----------------- Hcp. Matter Pod | -9/Materials | Scanalyzed Lrg. Matter Pod | -9/Materials | Extracted Imp. Light Cannon | -9/Materials | Extracted Weapon Shielding | -9/Materials | Extracted Imp. Aluminum Leg | -9/Materials | Extracted Hvy. Assault Rifle | -9/Materials | Extracted Heat Sink | -9/Materials | Extracted Lgt. Cannon | -9/Materials | Extracted Maul | -9/Materials | Extracted Datajack | -9/Materials | Extracted Med. Armor Plating | -9/Materials | Extracted Salvage Targeting Computer | -9/Materials | Extracted Lgt. EM Pulse Cannon | -9/Materials | Extracted Imp. Flight Unit | -9/Materials | Extracted Imp. Hover Unit | -9/Materials | Extracted Assault Rifle | -9/Materials | Extracted Power Shielding | -9/Materials | Extracted Particle Cannon | -9/Materials | Extracted Spread Laser | -9/Materials | Extracted EM Shotgun | -9/Materials | Extracted Med. Laser | -9/Materials | Extracted Com. Wheel | -9/Materials | Extracted VTOL Module | -9/Materials | Extracted Rocket Launcher | -9/Materials | Extracted ECM Suite | -9/Materials | Extracted Sml. Laser | -9/Materials | Extracted Cmb. Airjet | -8/Materials | Scanalyzed Assault Cannon | -8/Materials | Scanalyzed Adv. Assault Cannon | -7/Factory | Scanalyzed Gravmag System | -7/Factory | Scanalyzed Graphene Brace | -7/Factory | Scanalyzed Combat Drone Bay | -7/Data Miner | Free Lgt. Regenerative Plating | -7/Data Miner | Free Cld. Aerolev Unit | -7/Data Miner | Free Exp. Weapon Shielding | -7/Data Miner | Free Imp. Lightning Gun | -7/Data Miner | Free Nuclear Pulse Array | -7/Data Miner | Free Adv. Field Recycling Unit | -7/Data Miner | Free Hyp. Gauss Cannon | -7/Data Miner | Free Drone Bay | -7/Data Miner | Free Robot Schematics ------------------ M-13 Machinist | -9/Mines | Hacked G-47 Trooper | -7/Data Miner | Free S-27 Virus | -7/Data Miner | Free E-15 Imp | -7/Data Miner | Free X-67 Chaingunner | -7/Data Miner | Free H-66 Slayer | -7/Data Miner | Free C-35 Carver | -7/Data Miner | Free G-50 Soldier | -7/Data Miner | Free Fabricated ------------ Nothing Repaired ---------- Ion Engine | 5% | -10/Materials Lgt. Assault Rifle | 51% | -10/Materials Lgt. Assault Rifle | 52% | -10/Materials Lgt. Assault Rifle | 62% | -10/Materials Minigun | 25% | -9/Materials Minigun | 68% | -9/Materials Minigun | 55% | -9/Materials Minigun | 52% | -9/Materials Minigun | 15% | -8/Materials Med. Treads | 27% | -8/Materials Disposable Heat Sink | 24% | -8/Materials Gauss Rifle | 70% | -8/Materials Minigun | 55% | -8/Materials Hpw. Shotgun | 20% | -8/Storage Imp. Assault Rifle | 27% | -8/Storage Cmb. Airjet | 5% | -6/Factory Studied --------- Assault Cannon | -8/Materials | Hacked Minigun | -8/Materials | Hacked Hpw. Shotgun | -8/Materials | Hacked Hvy. Assault Rifle | -8/Materials | Hacked Gravmag System | -7/Factory | Hacked Adv. Assault Cannon | -7/Factory | Hacked Rnf. Ion Engine | -7/Factory | Hacked Alien Tech Used ----------------- None Achievements -------------- None Challenges ------------ None Game ------ Seed EtherialBoltExpander Manual? 0 Play Time 03:16:15 Cumulative 733.5 hours Start 2026.08.01 @ 17:22:53 End 2026.08.02 @ 00:39:50 Sessions 1 Manual Loads 0 Difficulty Rogue Special Mode None Game No. 358 Rogue 358 Adventurer 0 Explorer 0 Win Type - Total 7 Types 3/0/2/1/0/0/0/0/0/1 Lore% 87 Gallery% 76 Achievement% 60 Wizard Run 0 Options --------- Layout 2 ASCII 0 Keyboard 1 Movement Vi Keybinds 0 Fullscreen 1 Font 16/Proggy Map View 55x47 Zoom Use 0% Tactical HUD 1 Map Filters NONE Filters NONE Steam 0 RUN: c1b66702-efaa-4730-8fd8-4e9b38b02b39